fUSD/lending_fUSD_20250327
["ID","MTS","AMOUNT","RATE_DAILY","PERIOD"]
[356728158,1743045032640,-117982.22354587,0.00015,2]
[356728161,1743045032652,-4013.46843775,0.00015,2]
[356728163,1743045032663,-10918.878,0.00015,2]
[356728165,1743045032675,-1420.00214319,0.00015,2]
[356728167,1743045032685,-556.26670477,0.00015,2]
[356728169,1743045032697,-1302.66754437,0.00015,2]
[356728172,1743045032712,-536.83568415,0.00015,2]
[356728248,1743045038162,-24375.75429604,0.00015,2]
[356728249,1743045038268,-589.97551441,0.00015,2]
[356728343,1743045040523,-588263.32055357,0.00015,2]
[356728344,1743045040681,-2759.23763721,0.00015,2]
[356728353,1743045046284,-529.55594759,0.00015,2]
[356728354,1743045046300,-309.02670223,0.00015,2]
[356728355,1743045046312,-7009.59599818,0.00015,2]
[356728356,1743045046324,-797.70304762,0.00015,2]
[356728357,1743045046337,-23973.95721219,0.00015,2]
[356728358,1743045046401,-334517.50700224,0.00015,2]
[356728359,1743045046413,-10471.784483,0.00015,2]
[356728360,1743045046433,-658.42625784,0.00015,2]
[356728361,1743045046445,-7201.90247,0.00015,2]
[356728372,1743046137034,-762.61,0.00013654,2]
[356728373,1743046137063,-1429.29133556,0.00013749,2]
[356728374,1743046137090,-2448.47,0.00013764,2]
[356728375,1743046137121,-150.79,0.00013849,2]
[356728376,1743046137149,-350.0,0.00013867,3]
[356728377,1743046137177,-150.0,0.00014001,2]
[356728378,1743046137208,-200.0,0.00014052,2]
[356728379,1743046137238,-200.0,0.00014052,2]
[356728380,1743046137267,-494.73,0.00014157,2]
[356728381,1743046137295,-300.0,0.00014171,2]
[356728382,1743046137324,-6574.78,0.00014172,2]
[356728383,1743046137353,-4647.09,0.00014181,2]
[356728384,1743046137382,-466.85079507,0.00014257,2]
[356728385,1743046137410,-150.0,0.00014257,2]
[356728386,1743046137439,-279.42,0.00014258,2]
[356728387,1743046137467,-23900.0,0.00014258,2]
[356728388,1743046137492,-4682.63,0.00014283,2]
[356728389,1743046137516,-434.9709691,0.00014533,2]
[356728390,1743046137808,-300.0,0.000146,5]
[356728391,1743046137832,-700.0,0.000147,5]
[356728392,1743046137856,-1100.0,0.000148,5]
[356728393,1743046137879,-20278.36690027,0.0001485,2]
[356728413,1743046209641,-946.9537189,0.0001455,2]
[356728414,1743046209665,-350.0,0.000147,3]
[356728415,1743046209689,-3406.22608961,0.0001485,2]
[356728416,1743046209714,-680.078,0.0001485,2]
[356728417,1743046209739,-868.4059,0.000149,2]
[356728418,1743046209763,-191.37162453,0.000149,2]
[356728419,1743046209787,-1500.0,0.000149,5]
[356728420,1743046209811,-162.47593309,0.000149,2]
[356728421,1743046209834,-639.17939149,0.00014954,2]
[356728422,1743046209858,-1255.30934238,0.0001499,2]
[356728427,1743046231345,-1003.17646235,0.00014999,2]
[356728429,1743046231355,-298.18751271,0.00014999,2]
[356728431,1743046231366,-950.26546194,0.00014999,2]
[356728433,1743046231378,-1266.60175907,0.00014999,2]
[356728435,1743046231407,-396.16,0.00014999,2]
[356728436,1743046231419,-628.42,0.00014999,2]
[356728437,1743046231430,-1047.48614095,0.00014999,2]
[356728438,1743046231440,-572.0,0.00015,2]
[356728439,1743046231450,-2270.74177822,0.00015,2]
[356728440,1743046231465,-71904.68877617,0.00015,2]
[356728441,1743046231477,-413.21193929,0.00015,2]
[356728442,1743046231523,-1385.79988261,0.00015,2]
[356728443,1743046231581,-6313.0,0.00015,2]
[356728444,1743046231592,-7933.5579185,0.00015,2]
[356728445,1743046231604,-4812.07374018,0.00015,2]
[356728446,1743046231639,-3056.0375105,0.00015,2]
[356728447,1743046231654,-378926.86064078,0.00015,2]
[356728448,1743046231666,-1139.681725,0.00015,2]
[356728449,1743046231676,-5622.03985906,0.00015,2]
[356728450,1743046231697,-83264.32757251,0.00015,2]
[356728451,1743046231708,-2208.97184433,0.00015,2]
[356728452,1743046231720,-1098.60154289,0.00015,2]
[356728453,1743046231732,-447.46047696,0.00015,2]
[356728472,1743046237283,-12332.53735046,0.00015,2]
[356728473,1743046237296,-20077.01605793,0.00015,2]
[356728474,1743046237308,-614.6374616,0.00015,2]
[356728475,1743046237339,-1029.578,0.00015,2]
[356728476,1743046237448,-2125.0,0.00015,2]
[356728477,1743046237459,-495.43438654,0.00015,2]
[356728538,1743046239452,-1025.06710056,0.00015,2]
[356728539,1743046239464,-364693.55467912,0.00015,2]
[356728540,1743046239475,-177159.84031302,0.00015,2]
[356728541,1743046239485,-46409.92556143,0.00015,2]
[356728542,1743046239510,-2335.29685159,0.00015,2]
[356728543,1743046239523,-5765.18510963,0.00015,2]
[356728544,1743046239566,-3150.11392817,0.00015,2]
[356728545,1743046239624,-8429.26546566,0.00015,2]
[356728546,1743046239681,-1106.48039432,0.00015,2]
[356728547,1743046239739,-1034.6788,0.00015,2]
[356728548,1743046240102,-40319.28099552,0.00015,2]
[356728549,1743046240114,-643.47365204,0.00015,2]
[356728550,1743046240125,-7901.67657273,0.00015,2]
[356728551,1743046240136,-329.19161485,0.00015,2]
[356728562,1743046245870,-13913.17722467,0.00015,2]
[356728564,1743046267816,154.301191,7.945e-05,2]
[356728566,1743046708215,412.75,0.00032346,30]
[356728567,1743046781241,435.10085126,0.00032346,120]
[356728589,1743047207777,299.99,0.00032359,30]
[356728604,1743047431604,-724.47,0.00013327,2]
[356728605,1743047431614,-671.69894,0.00013809,2]
[356728606,1743047431623,-2028.25,0.00013863,2]
[356728607,1743047431632,-200.0,0.00013909,2]
[356728608,1743047431643,-170.55,0.00014024,2]
[356728609,1743047431655,-500.0,0.00014043,2]
[356728610,1743047431665,-200.0,0.00014164,2]
[356728611,1743047431674,-673.94,0.00014169,2]
[356728612,1743047431683,-150.0,0.00014188,2]
[356728613,1743047431694,-200.17853843,0.00014223,2]
[356728614,1743047431703,-500.0,0.00014223,2]
[356728615,1743047431712,-6799.77501093,0.00014224,2]
[356728616,1743047431728,-298.86,0.00014224,2]
[356728617,1743047431740,-2995.11799,0.00014224,2]
[356728618,1743047431750,-3894.63008053,0.00014224,2]
[356728619,1743047431818,-9911.61691854,0.00014224,2]
[356728620,1743047431827,-5138.90490975,0.0001423,2]
[356728621,1743047431839,-313.84509025,0.0001423,2]
[356728622,1743047431848,-139.66490975,0.0001455,2]
[356728623,1743047431924,-570.55037935,0.0001455,2]
[356728624,1743047431934,-350.0,0.0001466,3]
[356728625,1743047431943,-350.0,0.0001466,3]
[356728626,1743047431953,-350.0,0.0001466,3]
[356728627,1743047431962,-150.0,0.0001466,2]
[356728628,1743047431972,-434.9709691,0.00014788,2]
[356728629,1743047431981,-150.0,0.00014899,2]
[356728630,1743047431990,-1000.0,0.000149,2]
[356728631,1743047431999,-2500.0,0.000149,2]
[356728632,1743047432009,-19847.7472,0.000149,2]
[356728633,1743047432018,-2076.63323469,0.000149,2]
[356728634,1743047432027,-2439.92012086,0.000149,2]
[356728635,1743047432036,-162.47593309,0.000149,2]
[356728636,1743047432046,-161.76593144,0.00014919,2]
[356728637,1743047432055,-500.0,0.00014973,2]
[356728638,1743047432065,-511.0,0.00015,2]
[356728639,1743047432074,-49464.53916289,0.00015,2]
[356728640,1743047432086,-978.02127164,0.00015,2]
[356728641,1743047432097,-3162.85049579,0.00015,2]
[356728651,1743047437508,-12559.10305404,0.00015,2]
[356728652,1743047437716,-386.8134353,0.00015,2]
[356728658,1743047439769,-489.01279254,0.00015,2]
[356728659,1743047439874,-10022.83966843,0.00015,2]
[356728660,1743047440167,-223569.76587445,0.00015,2]
[356728661,1743047440180,-981.89589485,0.00015,2]
[356728662,1743047440237,-6610.57645367,0.00015,2]
[356728663,1743047440262,-487.56226418,0.00015,2]
[356728664,1743047440277,-279.9197,0.00015,2]
[356728669,1743047442664,-2708.784,0.00015,2]
[356728718,1743047446102,-657.15099812,0.00015,2]
[356728719,1743047446114,-4272.8298576,0.00015,2]
[356728720,1743047446125,-4823.32000025,0.00015,2]
[356728721,1743047446136,-627.08299997,0.00015,2]
[356728722,1743047446147,-785.859651,0.00015,2]
[356728723,1743047745254,1008.45264433,0.00032359,30]
[356728725,1743048205607,251.59384234,0.00032363,120]
[356728726,1743048234436,191.0968314,0.00032363,120]
[356728752,1743048631741,-1195.44847616,0.00013504,2]
[356728753,1743048631750,-500.0,0.00013524,2]
[356728754,1743048631760,-308.11,0.00013533,2]
[356728755,1743048631770,-350.0,0.0001355,3]
[356728756,1743048631780,-1000.0,0.00013568,2]
[356728757,1743048631790,-1195.44847615,0.00013599,2]
[356728758,1743048631799,-155.29,0.00013604,2]
[356728759,1743048631809,-350.0,0.00013665,3]
[356728760,1743048631819,-3613.90304769,0.00013699,2]
[356728761,1743048631830,-259.7595,0.00013699,2]
[356728762,1743048631845,-1166.26282641,0.00013699,2]
[356728763,1743048631861,-1480.75858882,0.00013699,2]
[356728764,1743048631872,-365.19994533,0.00013699,2]
[356728765,1743048631883,-312.5,0.00013699,2]
[356728766,1743048631895,-562.5,0.00013699,2]
[356728767,1743048631906,-970.99304133,0.00013699,2]
[356728768,1743048631917,-927.61514,0.00013699,2]
[356728769,1743048631928,-11477.56866556,0.00013699,2]
[356728770,1743048632063,-610.44814184,0.00013699,2]
[356728771,1743048632075,-718.889993,0.00013699,2]
[356728910,1743048637688,-8924.70111002,0.00013699,2]
[356728911,1743048637698,-164.78,0.00013922,2]
[356728912,1743048637708,-164.78,0.00014002,2]
[356728913,1743048637718,-200.0,0.00014008,2]
[356728914,1743048637728,-150.0,0.00014054,2]
[356728915,1743048637737,-1014.12,0.00014054,2]
[356728916,1743048637746,-161.11,0.00014054,2]
[356728917,1743048637755,-164.78,0.00014082,2]
[356728918,1743048637764,-164.78,0.00014161,2]
[356728919,1743048637774,-766.24,0.00014173,2]
[356728920,1743048637784,-124.70888998,0.00014238,2]
[356728921,1743048637795,-23775.29111002,0.00014238,2]
[356728922,1743048637804,-164.78,0.00014241,2]
[356728923,1743048637813,-757.18,0.00014301,2]
[356728924,1743048637823,-164.78,0.0001432,2]
[356728925,1743048637832,-4272.39,0.00014348,2]
[356728926,1743048637841,-164.78,0.000144,2]
[356728927,1743048637851,-150.0,0.00014438,2]
[356728928,1743048637860,-21448.36097082,0.00014439,2]
[356728929,1743048637876,-358.33485164,0.00014439,2]
[356728930,1743048637887,-3821.21033686,0.00014439,2]
[356728931,1743048637898,-2044.63508483,0.00014439,2]
[356728932,1743048637910,-1235.0,0.00014439,2]
[356728933,1743048637922,-359.28,0.00014439,2]
[356728934,1743048637933,-485.4608619,0.00014439,2]
[356728935,1743048637944,-13050.4944388,0.00014439,2]
[356728936,1743048637955,-2874.39345515,0.00014439,2]
[356728937,1743048637965,-4684.33,0.0001446,2]
[356728938,1743048637974,-504.38616867,0.00014473,2]
[356728939,1743048637983,-155.20690634,0.00014473,2]
[356728940,1743048637992,-153.4948531,0.00014473,2]
[356728941,1743048638001,-155.36167897,0.00014473,2]
[356728942,1743048638010,-152.39786049,0.00014473,2]
[356728944,1743048638019,-155.40508424,0.00014473,2]
[356728946,1743048638028,-500.0,0.00014473,2]
[356728948,1743048638037,-500.52262783,0.00014473,2]
[356728950,1743048638046,-164.78,0.00014479,2]
[356728952,1743048638055,-184.42,0.00014511,2]
[356728954,1743048638064,-533.021,0.00014511,2]
[356728956,1743048638073,-533.021,0.00014511,2]
[356728958,1743048638083,-533.021,0.00014511,2]
[356728960,1743048638092,-533.021,0.00014511,2]
[356728962,1743048638101,-533.021,0.00014511,2]
[356728964,1743048638111,-533.021,0.00014511,2]
[356728966,1743048638119,-533.021,0.00014511,2]
[356728968,1743048638128,-533.021,0.00014511,2]
[356728970,1743048638137,-533.021,0.00014511,2]
[356728972,1743048638146,-533.021,0.00014511,2]
[356728980,1743048638275,-532.6614669,0.0001455,2]
[356728982,1743048638293,-434.9709691,0.00014615,2]
[356728984,1743048638302,-150.0,0.00014775,2]
[356728985,1743048638312,-350.0,0.00014886,3]
[356728987,1743048638322,-168.05367674,0.000149,2]
[356728989,1743048638331,-1475.6587,0.000149,2]
[356728991,1743048638341,-500.0,0.000149,2]
[356728993,1743048638351,-11167.7643,0.000149,2]
[356728995,1743048638360,-1436.73,0.000149,2]
[356728997,1743048638369,-2293.70273694,0.00014901,2]
[356728999,1743048638378,-2947.04036911,0.00014901,2]
[356729001,1743048638387,-159.26864808,0.00014901,2]
[356729002,1743048638396,-150.0,0.00014916,2]
[356729005,1743048638405,-627.59524709,0.00014973,2]
[356729007,1743048638414,-151.51119156,0.00014973,2]
[356729009,1743048638424,-160.48213765,0.00014973,2]
[356729011,1743048638433,-220672.27254419,0.00015,2]
[356729013,1743048638446,-439.2082749,0.00015,2]
[356729015,1743048638457,-983.76745006,0.00015,2]
[356729017,1743048638469,-45295.0453,0.00015,2]
[356729019,1743048638480,-11570.81191422,0.00015,2]
[356729022,1743048638491,-4151.55653177,0.00015,2]
[356729024,1743048638503,-945.17380999,0.00015,2]
[356729026,1743048638515,-11333.89980342,0.00015,2]
[356729028,1743048638526,-689.32368187,0.00015,2]
[356729030,1743048638537,-14173.53807423,0.00015,2]
[356729075,1743048640164,-223569.76587445,0.00015,2]
[356729115,1743048642883,-349.66610001,0.00015,2]
[356729116,1743048642936,-527.2466018,0.00015,2]
[356729122,1743048645222,-23709.07169026,0.00015,2]
[356729123,1743048645233,-990.39214911,0.00015,2]
[356729125,1743048645766,-4094.11845004,0.00015,2]
[356729128,1743048645784,-11487.40386403,0.00015,2]
[356729129,1743048645796,-2313.60312945,0.00015,2]
[356729130,1743048645807,-348.95445286,0.00015,2]
[356729131,1743048645823,-1679.8477208,0.00015,2]
[356729132,1743048645835,-6069.08273,0.00015,2]
[356729133,1743048645925,-313.06330969,0.00015,2]
[356729134,1743048646032,-496.302152,0.00015,2]
[356729135,1743048646085,-8581.48722339,0.00015,2]
[356729136,1743048646097,-864.53248379,0.00015,2]
[356729137,1743048646140,-5510.1542467,0.00015,2]
[356729138,1743048646151,-279.0414,0.00015,2]
[356729144,1743049248830,314.0,0.0002501,120]
[356729145,1743049316336,2257.42551208,0.00032365,30]
[356729146,1743049514220,64749.50806032,0.00032365,30]
[356729159,1743049727435,622.73584666,0.0002,120]
[356729172,1743049805927,350.0,0.0001275,3]
[356729176,1743049824367,1000.0,0.0002501,120]
[356729182,1743049831922,-295.72479042,0.000125,2]
[356729184,1743049831932,-828.77376804,0.000125,2]
[356729186,1743049831943,-388.23371062,0.000125,2]
[356729189,1743049831955,-3175.25429498,0.000125,2]
[356729190,1743049831977,-255.39574997,0.000125,2]
[356729191,1743049831989,-850.0,0.000125,2]
[356729192,1743049832035,-485.89886006,0.000125,2]
[356729193,1743049832049,-2206.59820075,0.000125,2]
[356729194,1743049832124,-1502.84541558,0.000125,2]
[356729195,1743049832134,-4255.93605639,0.00013,2]
[356729196,1743049832144,-350.0,0.00013014,3]
[356729197,1743049832154,-5139.02030451,0.0001305,2]
[356729198,1743049832163,-984.23,0.00013191,2]
[356729199,1743049832172,-150.57,0.00013329,2]
[356729200,1743049832182,-423.175959,0.00013363,2]
[356729201,1743049832191,-150.0,0.00013367,2]
[356729202,1743049832201,-48431.28761121,0.00013368,2]
[356729203,1743049832210,-150.57,0.00013388,2]
[356729204,1743049832220,-1000.0,0.00013438,2]
[356729205,1743049832230,-150.57,0.00013447,2]
[356729206,1743049832239,-226.02,0.00013463,2]
[356729207,1743049832249,-5860.16,0.00013463,2]
[356729208,1743049832258,-301.28,0.00013489,2]
[356729209,1743049832267,-1000.0,0.000135,2]
[356729210,1743049832277,-150.57,0.00013507,2]
[356729211,1743049832286,-150.57,0.00013566,2]
[356729212,1743049832296,-1954.79,0.00013596,2]
[356729213,1743049832305,-423.175959,0.00013618,2]
[356729214,1743049832315,-300.0,0.0001362,2]
[356729215,1743049832325,-150.57,0.00013625,2]
[356729216,1743049832335,-2027.7245,0.00013648,2]
[356729217,1743049832344,-169.07,0.00013649,2]
[356729218,1743049832354,-150.57,0.00013684,2]
[356729219,1743049832364,-151.72,0.00013699,2]
[356729220,1743049832374,-500.0,0.00013699,2]
[356729222,1743049832383,-200.0,0.00013699,2]
[356729224,1743049832392,-500.0,0.00013699,2]
[356729226,1743049832402,-500.0,0.00013699,2]
[356729228,1743049832411,-500.0,0.00013699,2]
[356729230,1743049832421,-500.0,0.00013699,2]
[356729232,1743049832430,-500.0,0.00013699,2]
[356729234,1743049832439,-500.0,0.00013699,2]
[356729236,1743049832449,-500.0,0.00013699,2]
[356729238,1743049832459,-500.0,0.00013699,2]
[356729240,1743049832468,-500.0,0.00013699,2]
[356729242,1743049832478,-500.0,0.00013699,2]
[356729243,1743049832487,-617.08726053,0.00013699,2]
[356729245,1743049832497,-500.0,0.00013699,2]
[356729247,1743049832506,-500.0,0.00013699,2]
[356729249,1743049832515,-500.0,0.00013699,2]
[356729251,1743049832525,-150.57,0.00013744,2]
[356729253,1743049832535,-1852.42,0.00013748,2]
[356729255,1743049832545,-350.0,0.0001375,3]
[356729257,1743049832555,-150.0,0.0001375,2]
[356729259,1743049832565,-150.57,0.00013803,2]
[356729261,1743049832574,-23900.0,0.0001383,2]
[356729262,1743049832584,-150.57,0.00013862,2]
[356729263,1743049832594,-423.175959,0.00013873,2]
[356729266,1743049832604,-549.45,0.00013934,2]
[356729267,1743049832614,-4328.64951372,0.00013964,2]
[356729268,1743049832624,-162.14699852,0.00013973,2]
[356729269,1743049832633,-237.81339502,0.00013973,2]
[356729270,1743049832643,-500.0,0.00013973,2]
[356729271,1743049832784,-38937.54189953,0.00013974,2]
[356729272,1743049832825,-3985.24919201,0.00014,2]
[356729273,1743049832835,-150.0,0.00014039,7]
[356729274,1743049832845,-3689.88,0.00014042,2]
[356729275,1743049832855,-200.0,0.00014044,2]
[356729276,1743049832865,-250.0,0.00014112,2]
[356729277,1743049832874,-2751.0,0.0001414,2]
[356729278,1743049832883,-2229.68,0.0001418,2]
[356729279,1743049832892,-150.0,0.000143,2]
[356729280,1743049832901,-9908.76075537,0.0001439,2]
[356729281,1743049832911,-255.0,0.00014477,2]
[356729282,1743049832920,-166.58,0.00014501,2]
[356729283,1743049832929,-788.40945955,0.00014531,2]
[356729284,1743049832938,-399.4961001,0.0001455,2]
[356729285,1743049832948,-434.9709691,0.00014608,2]
[356729286,1743049832958,-333.28695462,0.00014799,2]
[356729287,1743049832967,-150.0,0.00014872,2]
[356729288,1743049832977,-10990.90152237,0.00014876,2]
[356729289,1743049832986,-1000.0,0.000149,2]
[356729290,1743049832996,-1312.6929,0.000149,2]
[356729291,1743049833005,-5356.34046906,0.000149,2]
[356729292,1743049833015,-778.97059173,0.000149,2]
[356729293,1743049833025,-188.31985035,0.000149,2]
[356729294,1743049833035,-2064.33246321,0.000149,2]
[356729295,1743049833046,-2963.42261879,0.000149,2]
[356729296,1743049833059,-1073.90425003,0.000149,2]
[356729297,1743049833088,-956.33576299,0.000149,2]
[356729298,1743049833101,-724.68,0.000149,2]
[356729299,1743049833113,-2999.2347249,0.000149,2]
[356729300,1743049833123,-177.72204198,0.000149,2]
[356729301,1743049833132,-159.10570228,0.000149,2]
[356729302,1743049833144,-96.48516188,0.000149,2]
[356729303,1743049833153,-159.26864808,0.000149,2]
[356729304,1743049833163,-173.7318159,0.00014901,2]
[356729305,1743049833172,-1209.023,0.00014901,2]
[356729306,1743049833182,-156.19477908,0.00014973,2]
[356729307,1743049833192,-500.92971455,0.00014973,2]
[356729308,1743049833202,-373.20851537,0.00014973,2]
[356729309,1743049833211,-502.2133372,0.00014973,2]
[356729310,1743049833220,-500.59421021,0.00014973,2]
[356729311,1743049833230,-576.0,0.00015,2]
[356729312,1743049833240,-2369.6047529,0.00015,2]
[356729313,1743049833252,-7564.10273858,0.00015,2]
[356729314,1743049833264,-6973.55718314,0.00015,2]
[356729315,1743049833276,-1372.11529576,0.00015,2]
[356729316,1743049833288,-1121.64177466,0.00015,2]
[356729317,1743049833299,-16425.42448988,0.00015,2]
[356729320,1743049837845,-4172.09099041,0.00015,2]
[356729321,1743049837856,-9563.2,0.00015,2]
[356729322,1743049837868,-2559.33589369,0.00015,2]
[356729323,1743049837879,-278.35824588,0.00015,2]
[356729324,1743049837953,-31794.36768652,0.00015,2]
[356729325,1743049837965,-3979.7328063,0.00015,2]
[356729326,1743049837976,-3211.91999948,0.00015,2]
[356729327,1743049837987,-43140.58285176,0.00015,2]
[356729328,1743049838011,-4107.39949026,0.00015,2]
[356729329,1743049838023,-661.29448133,0.00015,2]
[356729330,1743049838070,-433.49178807,0.00015,2]
[356729339,1743049840078,-515.0,0.00015,2]
[356729340,1743049840087,-223054.76587445,0.00015,2]
[356729341,1743049840134,-1038.96082101,0.00015,2]
[356729342,1743049840198,-487.8,0.00015,2]
[356729343,1743049840209,-647.93106815,0.00015,2]
[356729344,1743049840222,-4534.94174274,0.00015,2]
[356729345,1743049840234,-905.0,0.00015,2]
[356729346,1743049840306,-8916.20685987,0.00015,2]
[356729347,1743049840317,-602.76063078,0.00015,2]
[356729348,1743049840472,-3737.66968128,0.00015,2]
[356729349,1743049840484,-500.0,0.00015,2]
[356729350,1743049840532,-1232.07597583,0.00015,2]
[356729371,1743049845383,-6597.416152,0.00015,2]
[356729372,1743049845445,-493.09706335,0.00015,2]
[356729373,1743049845456,-11477.80729397,0.00015,2]
[356729374,1743049845474,-30675.0,0.00015,2]
[356729376,1743049845877,-646.85139686,0.00015,2]
[356729377,1743049845991,-502.00081645,0.00015,2]
[356729378,1743049846048,-31743.88555362,0.00015,2]
[356729379,1743049846162,-302314.75390819,0.00015,2]
[356729384,1743050074581,3228882.36753933,0.00032379,30]
[356729385,1743050168600,160.621019,7.945e-05,2]
[356729386,1743050359148,-350.0,0.00013536,3]
[356729387,1743050359172,-350.0,0.00013744,3]
[356729388,1743050359194,-902.45251824,0.000138,2]
[356729389,1743050359218,-2182.61658176,0.00013847,2]
[356729408,1743051032054,-320.09861389,0.00013541,2]
[356729409,1743051032108,-122.03955911,0.00013541,2]
[356729410,1743051032118,-1000.0,0.0001361,2]
[356729411,1743051032131,-308.5188255,0.00013627,2]
[356729412,1743051032141,-49.19421768,0.00013645,2]
[356729413,1743051032166,-120.60303475,0.00013645,2]
[356729414,1743051032176,-308.5188255,0.00013646,2]
[356729415,1743051032185,-1160.0,0.00013727,2]
[356729416,1743051032195,-350.0,0.00013746,3]
[356729417,1743051032205,-150.0,0.00013746,2]
[356729418,1743051032216,-155.926,0.00013747,2]
[356729419,1743051032226,-500.0,0.00013846,2]
[356729420,1743051032235,-290.78747339,0.00013846,2]
[356729421,1743051032244,-21717.38341824,0.00013847,2]
[356729422,1743051032254,-2886.5961,0.00013874,2]
[356729423,1743051032264,-150.0,0.000139,7]
[356729424,1743051032274,-977.39,0.00013919,2]
[356729425,1743051032283,-700.15,0.00013987,2]
[356729426,1743051032296,-500.0,0.00014055,2]
[356729427,1743051032306,-200.0,0.00014109,2]
[356729428,1743051032316,-250.0,0.00014233,2]
[356729429,1743051032325,-1000.0,0.0001429,2]
[356729430,1743051032334,-493.0,0.00014329,2]
[356729431,1743051032344,-164.76,0.00014335,2]
[356729432,1743051032353,-1100.81,0.00014484,2]
[356729433,1743051032362,-299.6220751,0.0001455,2]
[356729435,1743051032371,-434.9709691,0.00014583,2]
[356729436,1743051032381,-4820.70642219,0.000148,2]
[356729437,1743051032390,-169.79725242,0.000148,2]
[356729438,1743051032398,-262.77437056,0.00014873,2]
[356729439,1743051032407,-500.0,0.00014873,2]
[356729440,1743051032417,-150.0,0.00014873,2]
[356729441,1743051032426,-15013.55731379,0.0001489,2]
[356729442,1743051032436,-350.0,0.00014896,3]
[356729443,1743051032445,-150.0,0.00014896,2]
[356729444,1743051032454,-178.78619774,0.000149,2]
[356729445,1743051032464,-173.73181589,0.000149,2]
[356729446,1743051032474,-42600.201,0.000149,2]
[356729447,1743051032483,-48894.7199,0.000149,2]
[356729448,1743051032492,-2368.84574472,0.000149,2]
[356729449,1743051032501,-272.9911,0.000149,2]
[356729456,1743051032671,-1839.0769,0.000149,2]
[356729457,1743051032678,-519.31372782,0.000149,2]
[356729459,1743051032685,-1000.0,0.000149,2]
[356729460,1743051032692,-188.31985034,0.000149,2]
[356729461,1743051032699,-5811.71823782,0.000149,2]
[356729463,1743051032706,-164.76,0.00014927,2]
[356729464,1743051032714,-1408.0,0.00014986,2]
[356729466,1743051032723,-967.218,0.00014998,2]
[356729468,1743051032733,-217296.31684887,0.00015,2]
[356729469,1743051032742,-405590.21097812,0.00015,2]
[356729471,1743051032758,-614.72573488,0.00015,2]
[356729473,1743051032769,-362076.19962034,0.00015,2]
[356729474,1743051032780,-356830.521,0.00015,2]
[356729476,1743051032791,-35000.0,0.00015,2]
[356729478,1743051032804,-96094.1773373,0.00015,2]
[356729480,1743051032815,-382.23193864,0.00015,2]
[356729481,1743051032827,-1285.70283055,0.00015,2]
[356729483,1743051032839,-402.91371413,0.00015,2]
[356729543,1743051038001,-422.36087517,0.000148,2]
[356729544,1743051038011,-77.63912483,0.000149,2]
[356729545,1743051038108,-2422.36087517,0.000149,2]
[356729546,1743051038119,-40931.47372482,0.00015,2]
[356729646,1743051040355,-200.0215647,0.00015,2]
[356729647,1743051040409,-223054.76587445,0.00015,2]
[356729648,1743051040466,-3461.50888082,0.00015,2]
[356729649,1743051040521,-558.89350208,0.00015,2]
[356729659,1743051043282,-2260.76583272,0.00015,2]
[356729663,1743051046206,-1073937.86950841,0.00015,2]
[356729664,1743051046227,-50486.36068602,0.00015,2]
[356729665,1743051308596,3249.255409,7.945e-05,2]
[356729671,1743051483812,-150.0,0.0001455,2]
[356729672,1743051504267,-74.7165563,0.0001455,2]
[356729673,1743051504292,-94.3534437,0.0001461,2]
[356729674,1743051576826,-262.0305563,0.00014536,2]
[356729675,1743051609686,-183.713212,0.00014536,2]
[356729686,1743052232267,-1037.15,0.00014297,2]
[356729687,1743052232277,-350.0,0.00014312,3]
[356729688,1743052232286,-150.0,0.00014312,2]
[356729689,1743052232296,-1037.15,0.00014327,2]